Cogmind - Beta 11.1 *** ADVENTURER MODE // 2022.05.04 @ 15:50:05 Player: LILY Result: Destroyed by D-53 Grenadier with Mini Grenade Launcher Performance ------------- Evolutions (0) 0 Regions Visited (2) 400 Robots Destroyed (17) 85 Value Destroyed (359) 359 Prototype IDs (4) 80 Alien Tech Used (0) 0 Bonus (0) 0 TOTAL SCORE: 924 Bonus ------- None Cogmind --------- Core Integrity 0/250 Matter 281/300 Energy 77/100 System Corruption 1% Temperature Cool (43) Movement Core (400) Ox7 Location -10/Mines Parts ------- > --- POWER (1) -------- (None) > --- PROPULSION (2) --- Wheel > --- UTILITY (2) ------ Large Storage Unit > --- WEAPON (2) ------- Particle Gun Light Assault Rifle > --- INVENTORY (15) --- Ion Engine Light Ion Engine Wheel Flight Unit Flight Unit Flight Unit Small Matter Pod (50) Weight Redist. System Transport Network Coupler Small Laser Beam Cannon Beam Cannon Mining Laser Peak State ------------ > --- POWER ------------ Ion Engine > --- PROPULSION ------- Light Treads Light Treads > --- UTILITY ---------- Large Storage Unit Light Armor Plating > --- WEAPON ----------- EM Pulse Gun Light Assault Rifle > --- INVENTORY -------- Light Ion Engine Wheel Wheel Flight Unit Flight Unit Flight Unit Small Laser Particle Gun Beam Cannon [Rating: 8] Favorites ----------- Power Ion Engine Engine Ion Engine Propulsion Light Treads Treads Light Treads Wheel Wheel Utility Light Armor Plating Storage Small Storage Unit Protection Light Armor Plating Weapon Light Assault Rifle Energy Gun EM Pulse Gun Ballistic Gun Light Assault Rifle Build | -11 -10 -10 ------- Run | Scr Mat Min Slots Evolved . | . . . Power . | . . . Propulsion . | . . . Utility . | . . . Weapon . | . . . Parts Attached 17 | 7 8 2 Power 3 | 2 1 . Engine 3 | 2 1 . Core . | . . . Reactor . | . . . Propulsion 5 | 2 2 1 Treads 4 | 2 2 . Leg . | . . . Wheel 1 | . . 1 Hover . | . . . Flight . | . . . Utility 4 | 1 3 . Device . | . . . Storage 2 | 1 1 . Processor . | . . . Hackware . | . . . Protection 2 | . 2 . Artifact . | . . . Weapon 5 | 2 2 1 Energy Gun 4 | 1 2 1 Energy Cannon . | . . . Ballistic Gun 1 | 1 . . Ballistic Cannon . | . . . Launcher . | . . . Special Weapon . | . . . Impact Weapon . | . . . Slashing Weapon . | . . . Piercing Weapon . | . . . Special Melee Weapon . | . . . Unidentified Prototypes . | . . . Parts Lost 5 | . . 5 Power 1 | . . 1 Propulsion 2 | . . 2 Utility 1 | . . 1 Weapon 1 | . . 1 Highest Loss Streak 5 | . . 5 To Critical Strikes . | . . . Average Slot Usage (%) 95 | . 94 98 Engine 13 | . 14 13 Treads 27 | . 28 27 Storage 14 | . 14 14 Protection 10 | . 9 13 Energy Gun 13 | . 13 13 Ballistic Gun 14 | . 14 14 Naked Turns . | . . . Heaviest Build 31 | 13 31 31 Greatest Support 40 | 40 40 40 Greatest Overweight (x) 3 | 3 . 2 Average Overweight (x) . | 1 . . Largest Inventory Capacity 15 | 8 15 15 Average Capacity 11 | 7 10 15 Most Carried 15 | 8 15 15 Average Carried 10 | 5 10 14 Final Capacity 15 | 8 15 15 Final Carried 15 | 6 15 13 Class Distribution -------------------- 100% | Mutant Dominant Class ---------------- Mutant | -10/Materials Mutant | -10/Mines Resources | -11 -10 -10 ----------- Run | Scr Mat Min Matter Collected 408 | 210 188 10 Remotely . | . . . Salvage Created 649 | . 649 . Parts 47 | . 47 . Haulers Intercepted 2 | . 2 . Recyclers Shooed . | . . . Parts Field Recycled . | . . . Retrieved Matter . | . . . Parts Self-Destructed . | . . . Prevented . | . . . Kills | -11 -10 -10 ------- Run | Scr Mat Min Combat Hostiles Destroyed 11 | . 11 . Guns 11 | . 11 . Classes Destroyed 6 | . 6 . Worker 1 | . 1 . Builder 2 | . 2 . Hauler 2 | . 2 . Watcher 1 | . 1 . Swarmer 3 | . 3 . Grunt 8 | . 8 . Best Kill Streak 5 | . 5 . Combat Bots Only 3 | . 3 . Max Kills in Single Turn 1 | . 1 . Gunslinging . | . . . Exploded . | . . . Melee . | . . . Uniques/NPCs Destroyed . | . . . Combat | -11 -10 -10 -------- Run | Scr Mat Min Damage Taken 1058 | . 283 775 Core 269 | . 46 223 Absorbed by Shields . | . . . Redirected to Shielding 2 | . 2 . Regen/Repaired (Parts) 68 | . 68 . Core Remaining (%) 100 | 100 . . Volleys Fired 43 | . 38 5 Largest 2 | . 2 2 Hottest 85 | . 60 85 Shots Fired 85 | . 76 9 Gun 85 | . 76 9 Cannon . | . . . Launcher . | . . . Special . | . . . Kinetic 43 | . 38 5 Thermal 3 | . . 3 Explosive . | . . . Electromagnetic 39 | . 38 1 Robot Hit Streak 13 | . 13 4 Robot Miss Streak 2 | . 2 2 Penetration Max . | . . . Secondary Targets 1 | . 1 . Max Gunslinging Chain 1 | . 1 . Shots Hit Robots 61 | . 56 5 Core Hits 29 | . 29 . Critical Kills . | . . . Critical Parts Destroyed . | . . . Critical Strikes . | . . . Melee Attacks . | . . . Impact . | . . . Slashing . | . . . Piercing . | . . . Sneak Attacks . | . . . Combat Hostiles . | . . . Follow-up Attacks . | . . . Damage Inflicted 741 | . 671 70 Guns 741 | . 671 70 Cannons . | . . . Explosions . | . . . Melee . | . . . Ramming . | . . . Kinetic 263 | . 228 35 Thermal 35 | . . 35 Explosive . | . . . Electromagnetic 443 | . 443 . Impact . | . . . Slashing . | . . . Piercing . | . . . Highest Corruption 1 | . 1 1 Average Corruption 1 | . 1 1 Corruption Purged . | . . . Corruption Blocked . | . . . Effects 7 | . 4 3 Message Errors 2 | . 2 . Matter Fused 1 | . 1 . Heat Flow Errors 1 | . . 1 Energy Discharges 2 | . 1 1 Data Loss (major) 1 | . . 1 Overload Shots . | . . . Overflow Damage . | . . . Projectiles . | . . . Explosions . | . . . Melee . | . . . Knockbacks . | . . . Impact . | . . . Kinetic . | . . . Secondary . | . . . Self-Inflicted Damage . | . . . Shots . | . . . Rammed . | . . . Targets Rammed . | . . . Kicked . | . . . Crushed . | . . . Highest Temperature 234 | . 124 234 Average Temperature 51 | . 44 84 Received Heat Transfer 270 | . 210 60 Siege Activations . | . . . Robots Corrupted . | . . . Combat Hostiles . | . . . Parts Fried . | . . . Impact Corruptions . | . . . Robots Melted . | . . . Combat Hostiles . | . . . Parts Melted . | . . . Heat Transferred 74 | . . 74 Parts Sabotaged . | . . . Parts Stolen . | . . . Parts Stripped . | . . . Power Chain Reactions . | . . . Missiles Intercepted . | . . . Alert | -11 -10 -10 ------- Run | Scr Mat Min Peak Influence 221 | . 221 66 Initial 66 | . . 66 Average 71 | . 87 63 Maximum Alert Level 1 | . 1 . Low Security (%) 89 | 100 83 100 Level 1 10 | . 16 . Level 2 . | . . . Level 3 . | . . . Level 4 . | . . . Level 5 . | . . . High Security . | . . . Max Security . | . . . Squads Dispatched 2 | . 2 . Investigation 2 | . 2 . Extermination . | . . . Reinforcement . | . . . Assault . | . . . Garrison . | . . . Intercept . | . . . Searches Triggered . | . . . Construction Impeded . | . . . Haulers Reinforced . | . . . Active Scanning Responses . | . . . Cargo Convoy Interrupts . | . . . Stealth | -11 -10 -10 --------- Run | Scr Mat Min Distress Signals 1 | . 1 . Communications Jammed . | . . . Distress Signals . | . . . Times Spotted 40 | . 19 21 Peak Tracking Total 21 | . 3 21 Tactical Retreats 1 | . 1 . Traps | -11 -10 -10 ------- Run | Scr Mat Min Traps Triggered . | . . . Indirectly . | . . . Trap Hack Attempts . | . . . Triggered . | . . . Disarmed . | . . . Reprogrammed . | . . . Reused . | . . . Traps Extracted . | . . . Installed . | . . . Triggered . | . . . Machines | -11 -10 -10 ---------- Run | Scr Mat Min Machines Disabled . | . . . Max in Single Turn . | . . . Machines Sabotaged . | . . . Garrisons Compromised . | . . . Overloaded Fab Kills . | . . . Hacking | -11 -10 -10 --------- Run | Scr Mat Min Machines Accessed 5 | . 5 . Terminals 4 | . 4 . Fabricators . | . . . Repair Stations 1 | . 1 . Recycling Units . | . . . Scanalyzers . | . . . Garrison Access . | . . . Total Hacks 23 | . 23 . Successful 15 | . 15 . Failed 8 | . 8 . Catastrophic 1 | . 1 . Database Lockouts . | . . . Manual 5 | . 5 . Terminals 19 | . 19 . Fabricators . | . . . Repair Stations 4 | . 4 . Recycling Units . | . . . Scanalyzers . | . . . Garrison Access . | . . . Terminal Hacks 10 | . 10 . Part Schematic 1 | . 1 . Robot Analysis 1 | . 1 . Prototype ID Bank 2 | . 2 . Branch Access Points 1 | . 1 . Locate Traps 1 | . 1 . Hauler Manifests 1 | . 1 . Registered Prototypes 1 | . 1 . Zone Layout 2 | . 2 . Fabricator Hacks . | . . . Repair Station Hacks 4 | . 4 . Scan Component 2 | . 2 . Repair 2 | . 2 . Recycling Unit Hacks . | . . . Scanalyzer . | . . . Garrison Access Hacks . | . . . Unauthorized Hacks 1 | . 1 . Terminals 1 | . 1 . Operators 1 | . 1 . Fabricators . | . . . Repair Stations . | . . . Recycling Units . | . . . Scanalyzers . | . . . Garrison Access . | . . . Data Cores Recovered . | . . . Used . | . . . Hacking Detections 4 | . 4 . Full Trace Events 2 | . 2 . Feedback Events 1 | . 1 . Corruption 1 | . 1 . Feedback Blocked . | . . . Robot Schematics Acquired . | . . . Robots Built . | . . . Authchips . | . . . Time . | . . . Total Robot Build Rating . | . . . Part Schematics Acquired 1 | . 1 . Parts Built . | . . . Authchips . | . . . Time . | . . . Total Part Build Rating . | . . . Parts Repaired 2 | . 2 . Time 58 | . 58 . Parts Recycled . | . . . Recycled Matter . | . . . Retrieved Matter . | . . . Retrieved Components . | . . . Parts Scanalyzed . | . . . Part Schematics Acquired . | . . . Parts Damaged . | . . . Bothacking | -11 -10 -10 ------------ Run | Scr Mat Min Used RIF Installer . | . . . Robots Hacked . | . . . Non-combat . | . . . Combat . | . . . Robot Hacks Applied . | . . . Relay Couplers Released . | . . . Fabnet Peak Effective % . | . . . Robots Rewired . | . . . Allies Hacked . | . . . Hacks Repelled . | . . . Allies | -11 -10 -10 -------- Run | Scr Mat Min Total Allies . | . . . Largest Group . | . . . Highest-Rated Group . | . . . Highest-Rated Ally . | . . . Total Orders . | . . . Ally Attacks . | . . . Total Damage . | . . . Kills . | . . . Allies Corrupted . | . . . Allies Melted . | . . . Intel | -11 -10 -10 ------- Run | Scr Mat Min Robot Analysis Total 1 | . 1 . Derelict Logs Recovered . | . . . Drone Launches . | . . . Drone Recoveries . | . . . Exploration | -11 -10 -10 ------------- Run | Scr Mat Min Turns Passed 1064 | 117 689 258 Spaces Moved 504 | 51 298 155 Core 25 | 25 . . Treads 474 | 26 298 150 Legs . | . . . Wheels 5 | . . 5 Hover . | . . . Flight . | . . . Fastest Speed 50 | 50 160 110 Average Speed 159 | 162 160 158 Slowest Speed 200 | 200 160 160 Overloaded Moves . | . . . Propulsion Burnouts . | . . . Robots Hopped . | . . . Cave-ins Triggered . | . . . Exploration Rate (%) 36 | 4 59 46 Regions Visited 2 Branch Regions 1 Pre-discovered Areas . | . . . Known Exits Taken 1 | . 1 . Unknown Exits Taken 1 | 1 . . Scrap Searched 1 | . . 1 Spaces Dug . | . . . Terrain Destroyed . | . . . Melee . | . . . Projectile . | . . . AOE . | . . . Terrain Rammed . | . . . Walls Destroyed . | . . . Machines Disabled . | . . . Actions | -11 -10 -10 --------- Run | Scr Mat Min Total 692 | 84 446 162 Wait 91 | 17 74 . Move 502 | 50 297 155 Hop . | . . . Pick Up 27 | 10 17 . Fast Attach 5 | 2 3 . Attach 6 | 4 . 2 Detach . | . . . Swap 6 | 1 5 . Drop 12 | . 12 . Fire 43 | . 38 5 Melee . | . . . Ram . | . . . Kick . | . . . Crush . | . . . Escape Stasis . | . . . Rewire . | . . . Trap . | . . . Miscellaneous . | . . . Route ------- -11/Scrapyard -10/Materials (discovered 2 exits: [*Mat] / *Min) -10/Mines History --------- Turn | Location | Event 19 | -11/Scrapyard | Discovered new exit (range 16) 118 | -11/Scrapyard | Entered Materials 262 | -10/Materials | Discovered new exit (range 12) 284 | -10/Materials | Identified exit to Mines 308 | -10/Materials | Build established: Mutant 365 | -10/Materials | Repaired EM Pulse Gun 398 | -10/Materials | Repaired Particle Gun 807 | -10/Materials | Entered Mines 1029 | -10/Mines | Assembled infested the area 1057 | -10/Mines | Core integrity fell below 50% 1062 | -10/Mines | Core integrity fell below 20% 1065 | -10/Mines | Destroyed by D-53 Grenadier with Mini Grenade Launcher Last Messages --------------- 01052_ as-43542 destroyed. 01052_ as-63150 destroyed. 01052_ as-60941 destroyed. 01052_ as-05664 destroyed. 01052_ U-05 Engineer lays Concrete. 01053_ R-06 Scavenger system terminally corrupted. 01053_ The unstable cave ceiling collapses. 01053_ U-05 Engineer lays Concrete. 01053_ as-80931 destroyed. 01053_ as-60361 destroyed. 01054_ K-01 Serf destroyed. 01055_ The unstable cave ceiling collapses. 01055_ U-05 Engineer destroyed. 01060_ The unstable cave ceiling collapses. 01060_ Destroyed Shock Absorption System. 01062_ The unstable cave ceiling collapses. 01063_ Lgt. Treads destroyed. 01063_ D-53 Grenadier destroyed. 01064_ The unstable cave ceiling collapses. 01065_ K-01 Serf collects debris. Map ----- +----------------------------------------------------+ | #???# ##?????????????????????????????????? | | #???# ###??????????????????????????????????? | | ###### #####????????????????????????????????????? | | !%#?####????????????????????????????????????????? | | !%#???####??????????????????????????????????????? | | # =#??## ######?????????????????????????????????? | | # #?## ##????????????????????????????????? | | # ### #????????????????????????????????? | | # ##???????????????????????????????? | | # ##??????????????????????????????? | | ###### #??????????????????????????????? | | ????## #??????????????????????????????? | | ???## #??????????????????????????????? | | ?### ### ##??????????????????????????????? | | ## ##??? #???????????????????????????????? | | ##????? #??????????????????????????????? | | ## ##?????? #??????????????????????????????? | | ####### ##??????#??????????????????????????????? | | ??????## ##????????????????????????????????????? | | ???????## ###########??????????????????????????? | | ????????## ## #######????????????????????? | | ?????????## ##???????????????????? | | ?????????### ##??????????????????? | | ?????????# # #??????????????????? | | ??????#### d # #??????????????? | | ??????# = @ #??????????????? | | ???????# % % =* #???????????????? | | ???????# ! # # ####???????????????? | | ???????# ##??????????????????? | | ???????# #### t ##???????????????????? | | ???????# ##???###k####????????????????????? | | ??????# ????????# #???????????????????????? | | ?????# ##????????# #???????????????????????? | | ????# #?????????# ???????????????????????? | | ???# ##?????????###???????????????????????? | | ???# #????????????????????????????????????? | | ??? ## ##????????????????????????????????????? | | ??# #?####?????????????????????????????????????? | | ?? ???????????????????????????????????????????? | | ? !!* ???????????????????????????????????????????? | | =%!????????????????????????????????????????????? | | =#????????????????????????????????????????????? | | ?? ?????????????????????????????????????????????? | | ?????????????????????????????????????????????????? | | ?????????????????????????????????????????????????? | | ?????????????????????????????????????????????????? | | ?????????????????????????????????????????????????? | | ?????????????????????????????????????????????????? | | ?????????????????????????????????????????????????? | | ?????????????????????????????????????????????????? | +----------------------------------------------------+ Best States ------------- Heat Dissipation 25 Energy Generation 10 Energy Capacity 250 Matter Stores 300 Matter Capacity 300 Sight Range 16 Terrain Scan Density 10 Armor Coverage 150 Resistance: KI 20 Resistance: TH 20 Resistance: EX 20 Resistance: EM 20 Resistance: I 20 Resistance: S 20 Resistance: P 20 Core Shielding 20 Evasion (%) 40 Recoil Reduction 2 Offensive Hacking 10 Item Schematics ----------------- Huge Storage Unit | -10/Materials | Hacked Robot Schematics ------------------ None Fabricated ------------ Nothing Alien Tech Used ----------------- None Achievements -------------- None Challenges ------------ None Game ------ Seed HeavyThermicMediator Manual? 0 Play Time 00:13:46 Cumulative 165.7 hours Start 2022.05.04 @ 15:37:11 End 2022.05.04 @ 15:50:05 Sessions 1 Manual Loads 0 Difficulty Adventurer Special Mode None Game No. 29 Rogue 6 Adventurer 19 Explorer 4 Win Type - Total 17 Types 8/1/2/4/0/1/0/1/0 Lore% 68 Gallery% 67 Achievement% 73 Wizard Run 0 Options --------- ASCII 0 Keyboard 0 Movement Mouse Keybinds 0 Fullscreen 1 Font 18/Smallcaps Map View 76x50 Tactical HUD 1 Map Filters NONE Filters NONE Steam 1 RUN: 858b944a-3cef-4af0-91e9-d9c29dca24fc